bitfinex-derivatives/quotes_BTCF0:USTF0_20241227
["timestamp","ask_amount","ask_price","bid_price","bid_amount"]
[1735321258919,0.00983452,94195.0,94189.0,0.053171]
[1735321260425,0.1,94200.0,94189.0,0.3608]
[1735321260622,0.1,94200.0,94196.0,0.053168]
[1735321261727,0.101,94200.0,94199.0,0.053166]
[1735321262318,0.3608,94220.0,94212.0,0.053158]
[1735321262623,0.415475,94220.0,94199.0,0.0797]
[1735321262816,0.413955,94220.0,94200.0,1.5]
[1735321263017,0.3608,94220.0,94211.0,0.053159]
[1735321263215,0.00953965,94222.0,94217.0,0.3608]
[1735321263418,0.053142,94243.0,94235.0,0.053146]
[1735321264617,0.053142,94243.0,94233.0,0.3608]
[1735321264618,0.0097511,94249.0,94233.0,0.3608]
[1735321264928,0.3608,94261.0,94233.0,0.3608]
[1735321264929,0.053137,94251.0,94243.0,0.3608]
[1735321265223,0.3608,94261.0,94234.0,0.0744]
[1735321265224,0.053141,94244.0,94235.0,0.3608]
[1735321265413,0.005,94243.0,94235.0,0.3608]
[1735321265615,0.005,94243.0,94235.0,0.3618]
[1735321265913,0.005,94243.0,94235.0,0.414945]
[1735321266126,0.005,94243.0,94235.0,0.413945]
[1735321266419,0.005,94243.0,94237.0,0.053144]
[1735321267625,0.053141,94245.0,94243.0,0.001]
[1735321268221,0.053141,94245.0,94235.0,0.3618]
[1735321268222,0.01002466,94252.0,94235.0,0.3618]
[1735321268426,0.053137,94250.0,94240.0,0.053143]
[1735321268730,0.053142,94243.0,94237.0,0.006]
[1735321269125,0.3608,94272.0,94243.0,0.012]
[1735321269329,0.3608,94261.0,94260.0,0.21574283]
[1735321269522,0.3608,94261.0,94260.0,0.053132]
[1735321269726,0.053123,94277.0,94255.0,0.3608]
[1735321270028,0.053123,94277.0,94264.0,0.053129]
[1735321270217,0.3608,94288.0,94273.0,0.413924]
[1735321270421,0.3608,94288.0,94273.0,0.3608]
[1735321270622,0.05313,94264.0,94259.0,0.3608]
[1735321270827,0.3608,94267.0,94251.0,0.3608]
[1735321271033,0.053136,94253.0,94251.0,0.3608]
[1735321271229,0.3608,94259.0,94243.0,0.008]
[1735321271426,0.053141,94245.0,94243.0,0.008]
[1735321271729,0.05315,94228.0,94227.0,0.00975971]
[1735321272032,0.41395,94228.0,94227.0,0.00975971]
[1735321272627,0.053155,94219.0,94209.0,0.3608]
[1735321272831,0.053149,94229.0,94209.0,0.3608]
[1735321273130,0.1558,94244.0,94228.0,0.3608]
[1735321273631,0.053142,94243.0,94229.0,0.053149]
[1735321273830,0.053143,94241.0,94229.0,0.053149]
[1735321274333,0.053145,94238.0,94228.0,0.3608]
[1735321274832,0.053145,94238.0,94229.0,0.002]
[1735321275027,0.1558,94244.0,94229.0,0.002]
[1735321275229,0.053149,94230.0,94229.0,0.004]
[1735321275624,0.053149,94230.0,94229.0,0.002]
[1735321275830,0.053144,94239.0,94228.0,0.3648]
[1735321276136,0.053145,94237.0,94228.0,0.3648]
[1735321276320,0.16261083,94260.0,94236.0,0.053145]
[1735321276634,0.053141,94244.0,94236.0,0.053145]
[1735321277029,0.053141,94244.0,94239.0,0.3608]
[1735321277730,0.053136,94254.0,94239.0,0.3608]
[1735321278030,0.16323273,94260.0,94248.0,0.3608]
[1735321278237,0.053137,94251.0,94248.0,0.3608]
[1735321279728,0.053137,94251.0,94242.0,0.053142]
[1735321281026,0.053137,94251.0,94248.0,0.005]
[1735321281431,0.053133,94259.0,94248.0,0.005]
[1735321281625,0.001,94251.0,94245.0,0.05314]
[1735321282132,0.053135,94254.0,94245.0,0.05314]
[1735321282338,0.053135,94254.0,94248.0,0.005]
[1735321282834,0.053135,94254.0,94247.0,0.053139]
[1735321284237,0.3608,94254.0,94245.0,0.009]
[1735321284435,0.3608,94254.0,94240.0,0.053143]
[1735321284638,0.37230623,94262.0,94240.0,0.053143]
[1735321284639,0.053138,94249.0,94248.0,0.006]
[1735321285335,0.053138,94249.0,94247.0,0.005]
[1735321285740,0.053138,94249.0,94245.0,0.002]
[1735321285942,0.053138,94249.0,94248.0,0.004]
[1735321286637,0.053138,94249.0,94248.0,0.006]
[1735321287527,0.053147,94233.0,94229.0,0.00159194]
[1735321287726,0.053149,94231.0,94229.0,0.00159194]
[1735321288142,0.130444,94239.0,94229.0,0.00159194]
[1735321288434,0.053144,94239.0,94231.0,0.053148]
[1735321288634,0.3608,94259.0,94235.0,0.3608]
[1735321288941,0.233,94258.0,94235.0,0.3608]
[1735321289343,0.053136,94254.0,94242.0,0.053142]
[1735321289640,0.233,94258.0,94242.0,0.053142]
[1735321290029,0.233,94258.0,94235.0,0.413946]
[1735321290227,0.233,94258.0,94235.0,0.3608]
[1735321290442,0.233,94258.0,94238.0,0.053144]
[1735321291142,0.233,94258.0,94239.0,0.053143]
[1735321291442,0.233,94258.0,94243.0,0.053141]
[1735321292432,0.233,94258.0,94235.0,0.3608]
[1735321292433,0.233,94258.0,94246.0,0.053139]
[1735321292633,0.235,94258.0,94246.0,0.053139]
[1735321293135,0.235,94258.0,94239.0,0.25401959]
[1735321293342,0.01162769,94259.0,94248.0,0.3608]
[1735321293545,0.00159216,94270.0,94257.0,0.413934]
[1735321293838,0.00159216,94270.0,94269.0,0.053127]
[1735321294233,0.00159216,94270.0,94265.0,0.3608]
[1735321294435,0.00159216,94270.0,94260.0,0.053132]
[1735321294633,0.1559,94269.0,94255.0,0.25401959]
[1735321294850,0.053133,94259.0,94255.0,0.25401959]
[1735321295049,0.053134,94256.0,94255.0,0.25401959]
[1735321295344,0.3608,94264.0,94255.0,0.25401959]
[1735321295546,0.2312,94263.0,94247.0,0.67832449]
[1735321295748,0.10608391,94259.0,94255.0,0.001]
[1735321295944,0.007,94269.0,94258.0,0.3608]
[1735321296250,0.007,94269.0,94265.0,0.053128]
[1735321297641,0.00159216,94270.0,94265.0,0.053128]
[1735321297840,0.00159216,94270.0,94258.0,0.3608]
[1735321298043,0.003,94269.0,94258.0,0.3608]
[1735321298750,0.00159216,94270.0,94266.0,0.3608]
[1735321298951,0.00401655,94275.0,94266.0,0.3608]
[1735321299246,0.00159098,94303.0,94299.0,0.05311]
[1735321299749,0.3608,94342.0,94298.0,0.3608]
[1735321299949,0.3608,94342.0,94321.0,0.3608]
[1735321300540,0.10836238,94340.0,94329.0,0.3608]
[1735321300746,0.10836238,94340.0,94310.0,0.00159046]
[1735321300747,0.053092,94331.0,94319.0,0.3608]
[1735321300941,0.10836238,94340.0,94319.0,0.3608]
[1735321301137,0.1563,94341.0,94310.0,0.41549346]
[1735321301138,0.001,94342.0,94338.0,0.3608]
[1735321302248,0.00159046,94356.0,94338.0,0.3608]
[1735321302249,0.053081,94350.0,94338.0,0.3608]
[1735321302438,0.053079,94355.0,94338.0,0.3608]
[1735321302643,0.01146491,94356.0,94338.0,0.3608]
[1735321302845,0.006,94342.0,94338.0,0.3608]
[1735321303048,0.00159046,94356.0,94338.0,0.3608]
[1735321303243,0.00159046,94356.0,94355.0,0.3608]
[1735321304455,0.00259046,94356.0,94355.0,0.3618]
[1735321305757,0.00559046,94356.0,94355.0,0.3618]
[1735321305943,0.00559046,94356.0,94355.0,0.414878]
[1735321306342,0.00559046,94356.0,94355.0,0.3618]
[1735321307857,0.00559046,94356.0,94355.0,0.001]
[1735321308861,0.00559046,94356.0,94355.0,0.3618]
[1735321309554,0.00559046,94356.0,94355.0,0.001]
[1735321310761,0.053088,94339.0,94337.0,0.3608]
[1735321311662,0.053088,94339.0,94310.0,0.1637945]
[1735321311663,0.053092,94331.0,94318.0,0.3608]
[1735321312166,0.3608,94347.0,94326.0,0.3608]
[1735321312460,0.054087,94339.0,94326.0,0.413894]
[1735321312756,0.053092,94331.0,94326.0,0.3608]
[1735321312966,0.001,94339.0,94326.0,0.3608]
[1735321313353,0.053093,94330.0,94326.0,0.3608]
[1735321314161,0.3618,94339.0,94326.0,0.3608]
[1735321314365,0.3618,94339.0,94326.0,0.3628]
[1735321314568,0.053091,94332.0,94326.0,0.3628]
[1735321314761,0.053094,94327.0,94326.0,0.3628]
[1735321315560,0.053094,94327.0,94318.0,0.006]
[1735321315865,0.053103,94311.0,94310.0,0.00159046]
[1735321316064,0.01025853,94327.0,94310.0,0.00159046]
[1735321316363,0.053097,94322.0,94321.0,0.3608]
[1735321316952,0.0803,94339.0,94310.0,0.00159046]
[1735321317163,0.053097,94323.0,94318.0,0.3608]
[1735321317471,0.0803,94339.0,94321.0,0.005]
[1735321317658,0.0803,94339.0,94321.0,0.008]
[1735321317857,0.053097,94322.0,94321.0,0.008]
[1735321318259,0.053103,94311.0,94310.0,0.00159046]
[1735321318562,0.053103,94311.0,94310.0,0.01059046]
[1735321318563,0.413903,94311.0,94310.0,0.01059046]
[1735321318751,0.078,94321.0,94310.0,0.01059046]
[1735321318957,0.053099,94318.0,94310.0,0.01059046]
[1735321319162,0.16220404,94320.0,94310.0,0.01059046]
[1735321319562,0.053102,94313.0,94310.0,0.01059046]
[1735321319962,0.053103,94311.0,94307.0,0.3608]
[1735321320670,0.053103,94311.0,94310.0,0.005]
[1735321321170,0.053103,94311.0,94310.0,0.002]
[1735321321356,0.053099,94319.0,94310.0,0.002]
[1735321321553,0.053099,94319.0,94315.0,0.3608]
[1735321322458,0.0761,94329.0,94315.0,0.3608]
[1735321322660,0.129193,94329.0,94328.0,0.3608]
[1735321322867,0.053093,94329.0,94328.0,0.3608]
[1735321323276,0.00159089,94330.0,94315.0,0.3608]
[1735321323565,0.16220404,94325.0,94315.0,0.3608]
[1735321323769,0.0531,94317.0,94315.0,0.3618]
[1735321324469,0.0531,94317.0,94315.0,0.3608]
[1735321324768,0.1298,94316.0,94315.0,0.001]
[1735321324977,0.1298,94316.0,94315.0,0.002]
[1735321325356,0.0531,94316.0,94315.0,0.002]
[1735321326076,0.0531,94316.0,94315.0,0.3628]
[1735321326760,0.0531,94316.0,94315.0,0.002]
[1735321327071,0.0531,94316.0,94315.0,0.003]
[1735321327373,0.0531,94316.0,94315.0,0.005]
[1735321328456,0.0531,94316.0,94315.0,0.3658]
[1735321328660,0.0531,94316.0,94315.0,0.005]
[1735321329471,0.053108,94303.0,94302.0,0.3608]
[1735321330875,0.053108,94303.0,94302.0,0.3648]
[1735321331173,0.054108,94303.0,94302.0,0.3728]
[1735321332070,0.06240467,94303.0,94302.0,0.3728]
[1735321333669,0.054108,94303.0,94302.0,0.3728]
[1735321333871,0.001,94303.0,94302.0,0.3728]
[1735321334262,0.053102,94313.0,94302.0,0.3728]
[1735321334464,0.053091,94333.0,94312.0,0.3608]
[1735321334673,0.053095,94326.0,94325.0,0.3608]
[1735321335175,0.18680609,94335.0,94325.0,0.3608]
[1735321335479,0.053091,94333.0,94325.0,0.3608]
[1735321336072,0.053092,94332.0,94325.0,0.3608]
[1735321336468,0.053094,94327.0,94325.0,0.3608]
[1735321337670,0.055094,94327.0,94325.0,0.3608]
[1735321338468,0.002,94327.0,94311.0,0.053103]
[1735321338676,0.053099,94319.0,94311.0,0.053103]
[1735321338977,0.0531,94317.0,94308.0,0.00825581]
[1735321339173,0.0531,94317.0,94307.0,0.3608]
[1735321339371,0.053102,94313.0,94307.0,0.3608]
[1735321339967,0.053102,94313.0,94311.0,0.002]
[1735321340364,0.053102,94313.0,94311.0,0.006]
[1735321340776,0.053102,94313.0,94311.0,0.004]
[1735321340975,0.053102,94313.0,94307.0,0.3708]
[1735321341175,0.053099,94320.0,94309.0,0.053104]
[1735321341376,0.053099,94320.0,94319.0,0.3608]
[1735321343079,0.053099,94320.0,94319.0,0.3618]
[1735321343966,0.053094,94327.0,94319.0,0.3618]
[1735321344278,0.053094,94327.0,94319.0,0.414898]
[1735321344665,0.00159083,94335.0,94319.0,0.3618]
[1735321344865,0.05468083,94335.0,94328.0,0.053093]
[1735321345871,0.06268258,94335.0,94328.0,0.053093]
[1735321346564,0.06268258,94335.0,94327.0,0.3608]
[1735321346565,0.053091,94334.0,94327.0,0.3608]
[1735321346769,0.01359258,94335.0,94327.0,0.3608]
[1735321346971,0.053093,94329.0,94327.0,0.3608]
[1735321348985,0.10601306,94328.0,94309.0,0.3608]
[1735321349282,0.053104,94310.0,94309.0,0.3608]
[1735321349884,0.10821526,94320.0,94309.0,0.3608]
[1735321350180,0.10821526,94320.0,94310.0,0.053103]
[1735321350576,0.11635544,94320.0,94310.0,0.053103]
[1735321351775,0.053101,94315.0,94309.0,0.3698]
[1735321351975,0.053103,94311.0,94309.0,0.3698]
[1735321352378,0.0792,94310.0,94309.0,0.3638]
[1735321352576,0.1601,94310.0,94309.0,0.3638]
[1735321352976,0.1601,94310.0,94309.0,0.3658]
[1735321353981,0.053099,94318.0,94309.0,0.421904]
[1735321354183,0.053099,94318.0,94309.0,0.3688]
[1735321354688,0.053099,94318.0,94317.0,0.3608]
[1735321355383,0.053104,94310.0,94309.0,0.3688]
[1735321355586,0.053104,94310.0,94309.0,0.3658]
[1735321355775,0.053104,94310.0,94309.0,0.3688]
[1735321356381,0.053104,94310.0,94309.0,0.3658]
[1735321356593,0.06102232,94310.0,94309.0,0.3638]
[1735321358184,0.06102232,94310.0,94309.0,0.3688]
[1735321359584,0.06102232,94310.0,94270.0,0.3608]
[1735321359585,0.053109,94301.0,94270.0,0.3608]
[1735321359789,0.053126,94272.0,94270.0,0.3608]
[1735321360475,0.075,94271.0,94270.0,0.3608]
[1735321361491,0.075,94271.0,94270.0,0.3648]
[1735321361889,0.075,94271.0,94256.0,0.3608]
[1735321362093,0.053134,94257.0,94256.0,0.3608]
[1735321362988,0.076,94271.0,94256.0,0.3638]
[1735321362989,0.001,94271.0,94256.0,0.3638]
[1735321363189,0.10821526,94280.0,94256.0,0.6688]
[1735321363393,0.053128,94267.0,94257.0,0.0741]
[1735321363787,0.053128,94267.0,94258.0,1.5]
[1735321364102,0.10821526,94270.0,94258.0,1.5]
[1735321364488,0.053126,94270.0,94266.0,0.3608]
[1735321364794,0.36716282,94282.0,94266.0,0.3608]
[1735321364795,0.053123,94277.0,94266.0,0.3608]
[1735321364988,0.053123,94277.0,94267.0,0.0757]
[1735321365492,0.00152,94282.0,94280.0,0.05312]
[1735321365691,0.053115,94290.0,94280.0,0.05312]
[1735321365893,0.16239217,94290.0,94278.0,0.3608]
[1735321366093,0.053118,94285.0,94278.0,0.3608]
[1735321366289,0.053114,94293.0,94278.0,0.413921]
[1735321366492,0.053109,94301.0,94289.0,0.053115]
[1735321366692,0.16239217,94300.0,94290.0,0.0757]
[1735321366893,0.053113,94294.0,94290.0,0.0757]
[1735321367595,0.053114,94292.0,94290.0,0.0757]
[1735321368093,0.053117,94287.0,94286.0,0.3608]
[1735321369500,0.05312,94282.0,94278.0,0.3608]
[1735321369700,0.053119,94284.0,94278.0,0.3608]
[1735321369901,0.52479218,94290.0,94278.0,0.3608]
[1735321370096,0.053116,94289.0,94278.0,0.3608]
[1735321370500,0.053116,94289.0,94286.0,0.002]
[1735321370693,0.53108987,94290.0,94286.0,0.002]
[1735321370899,0.053117,94288.0,94286.0,0.002]
[1735321371496,0.053117,94288.0,94286.0,0.006]
[1735321371999,0.053125,94272.0,94261.0,0.053131]
[1735321372205,0.053121,94279.0,94278.0,0.003]
[1735321372504,0.413921,94279.0,94278.0,0.003]
[1735321372898,0.053129,94265.0,94253.0,0.053135]
[1735321374504,0.3608,94266.0,94251.0,0.00159158]
[1735321374701,0.053136,94253.0,94251.0,0.00159158]
[1735321375702,0.3608,94257.0,94251.0,0.00159158]
[1735321375904,0.001,94253.0,94252.0,0.053136]
[1735321376104,0.053127,94269.0,94252.0,0.053136]
[1735321376105,0.36722726,94266.0,94252.0,0.132536]
[1735321376295,0.00642726,94266.0,94258.0,0.3608]
[1735321376497,0.3608,94278.0,94258.0,0.3608]
[1735321376698,0.053129,94266.0,94258.0,0.3608]
[1735321378706,0.053129,94266.0,94258.0,0.3628]
[1735321379696,0.054129,94266.0,94258.0,0.3698]
[1735321380110,0.053129,94266.0,94258.0,0.3628]
[1735321380309,0.3608,94288.0,94258.0,0.3628]
[1735321380310,0.053124,94274.0,94264.0,0.053129]
[1735321380503,0.053124,94274.0,94268.0,0.3608]
[1735321381303,0.00663675,94278.0,94268.0,0.3608]
[1735321381512,0.05312,94282.0,94272.0,0.053125]
[1735321381905,0.24752333,94290.0,94268.0,0.3608]
[1735321382107,0.053121,94279.0,94268.0,0.3608]
[1735321382307,0.002,94274.0,94268.0,0.3608]
[1735321382618,0.053126,94270.0,94268.0,0.3608]
[1735321383505,0.16880119,94280.0,94268.0,0.3608]
[1735321383705,0.053125,94272.0,94268.0,0.3608]
[1735321385109,0.16880119,94280.0,94268.0,0.3638]
[1735321385110,0.053127,94269.0,94268.0,0.3638]
[1735321385415,0.053127,94269.0,94268.0,0.003]
[1735321385719,0.053127,94269.0,94268.0,0.006]
[1735321386011,0.001,94272.0,94270.0,0.053126]
[1735321386206,0.3608,94295.0,94271.0,0.4388]
[1735321386407,0.00649726,94293.0,94286.0,0.3608]
[1735321387312,0.053113,94294.0,94286.0,0.3608]
[1735321387514,0.053109,94301.0,94289.0,0.053115]
[1735321387716,0.00059159,94291.0,94290.0,0.0784]
[1735321388310,0.00059159,94291.0,94289.0,0.053115]
[1735321389116,0.00059159,94291.0,94290.0,0.003]
[1735321389317,0.00159159,94291.0,94290.0,0.008]
[1735321389814,0.00159159,94291.0,94289.0,0.053115]
[1735321389815,0.00059159,94291.0,94289.0,0.053115]
[1735321390017,0.00059159,94291.0,94289.0,0.058115]
[1735321391507,0.053112,94296.0,94291.0,0.053114]
[1735321391819,0.00656278,94305.0,94295.0,0.413912]
[1735321392011,0.10832603,94310.0,94295.0,0.413912]
[1735321392513,0.3608,94312.0,94295.0,0.3608]
[1735321392813,0.3608,94312.0,94300.0,0.10832603]
[1735321393017,0.00722307,94315.0,94311.0,0.3608]
[1735321393218,0.053101,94315.0,94311.0,0.3608]
[1735321394518,0.0742,94318.0,94311.0,0.3608]
[1735321394812,0.053105,94309.0,94301.0,0.053108]
[1735321395003,0.007,94315.0,94307.0,0.053105]
[1735321395509,0.053102,94313.0,94307.0,0.053105]
[1735321395709,0.005,94318.0,94303.0,0.3608]
[1735321395710,0.006,94318.0,94303.0,0.3608]
[1735321395911,0.053107,94305.0,94303.0,0.3608]
[1735321396714,0.053107,94305.0,94295.0,0.3608]
[1735321396715,0.053107,94305.0,94296.0,0.053111]
[1735321397314,0.053108,94303.0,94296.0,0.053111]
[1735321397815,0.0772,94312.0,94295.0,0.3608]
[1735321398020,0.053104,94310.0,94302.0,0.053108]
[1735321398215,0.08452841,94312.0,94303.0,0.053107]
[1735321398719,0.08452841,94312.0,94296.0,0.002]
[1735321398925,0.053105,94309.0,94295.0,0.418912]
[1735321399419,0.053105,94309.0,94295.0,0.3658]
[1735321399620,0.053105,94309.0,94297.0,0.053111]
[1735321399925,0.053105,94309.0,94295.0,0.3638]
[1735321400116,0.053105,94309.0,94299.0,0.05311]
[1735321400312,0.08452841,94312.0,94301.0,0.053109]
[1735321400716,0.08552841,94312.0,94301.0,0.053109]
[1735321400916,0.001,94312.0,94295.0,0.3608]
[1735321401117,0.001,94312.0,94305.0,0.053106]
[1735321401318,0.10832603,94320.0,94306.0,0.053106]
[1735321401513,0.11554121,94320.0,94306.0,0.053106]
[1735321401718,0.053099,94319.0,94306.0,0.053106]
[1735321401914,0.11554121,94320.0,94306.0,0.053106]
[1735321402727,0.11754121,94320.0,94306.0,0.053106]
[1735321402926,0.11754121,94320.0,94307.0,0.0804]
[1735321402927,0.0531,94316.0,94307.0,0.0804]
[1735321404827,0.0551,94316.0,94306.0,0.053106]
[1735321406419,0.053102,94314.0,94303.0,0.3608]
[1735321406625,0.053102,94313.0,94303.0,0.3608]
[1735321408222,0.054102,94313.0,94303.0,0.3608]
[1735321409321,0.053107,94304.0,94303.0,0.3608]
[1735321410727,0.053113,94293.0,94283.0,0.3608]
[1735321410925,0.053118,94284.0,94283.0,0.3608]
[1735321411429,0.053122,94278.0,94275.0,0.3608]
[1735321411618,0.053123,94276.0,94275.0,0.3608]
[1735321412630,0.0604187,94276.0,94275.0,0.3608]
[1735321413032,0.0604187,94276.0,94261.0,0.053131]
[1735321413325,0.053128,94268.0,94259.0,0.3608]
[1735321414222,0.0796,94270.0,94261.0,0.002]
[1735321414823,0.0796,94270.0,94260.0,0.053131]
[1735321415521,0.0072957,94276.0,94259.0,0.3658]
[1735321415719,0.10832603,94280.0,94262.0,0.053131]
[1735321415918,0.10832603,94280.0,94259.0,0.3658]
[1735321416114,0.053128,94267.0,94259.0,0.3658]
[1735321416422,0.05313,94263.0,94261.0,0.001]
[1735321417331,0.053126,94270.0,94261.0,0.002]
[1735321417533,0.053127,94269.0,94261.0,0.002]
[1735321417723,0.053128,94268.0,94261.0,0.002]
[1735321418128,0.053128,94268.0,94261.0,0.004]
[1735321419125,0.053128,94267.0,94261.0,0.004]
[1735321419326,0.053129,94265.0,94261.0,0.004]
[1735321419524,0.053129,94265.0,94261.0,0.003]
[1735321419731,0.053129,94265.0,94261.0,0.001]
[1735321420034,0.053129,94265.0,94261.0,0.003]
[1735321420235,0.053129,94265.0,94261.0,0.004]
[1735321420624,0.053129,94265.0,94261.0,0.005]
[1735321421026,0.053129,94265.0,94261.0,0.004]
[1735321421230,0.053129,94265.0,94261.0,0.001]
[1735321421536,0.053129,94265.0,94261.0,0.003]
[1735321422234,0.05313,94263.0,94261.0,0.003]
[1735321422640,0.053136,94252.0,94251.0,0.00159158]
[1735321424238,0.053142,94243.0,94229.0,0.053149]
[1735321424441,0.16146903,94240.0,94229.0,0.053149]
[1735321424642,0.16146903,94240.0,94230.0,0.053148]
[1735321424833,0.16146903,94240.0,94231.0,0.053148]
[1735321426542,0.16246903,94240.0,94231.0,0.060148]
[1735321427251,0.053146,94235.0,94231.0,0.007]
[1735321427543,0.053147,94234.0,94231.0,0.007]
[1735321427849,0.053147,94234.0,94231.0,0.01]
[1735321428052,0.11032603,94240.0,94231.0,0.01]
[1735321428236,0.053147,94233.0,94231.0,0.01]
[1735321428742,0.0747,94232.0,94231.0,0.003]
[1735321428939,0.0747,94232.0,94231.0,0.01]
[1735321429539,0.0747,94232.0,94231.0,0.004]
[1735321429736,0.4355,94232.0,94211.0,0.0762]
[1735321429943,0.053159,94212.0,94210.0,1.50159184]
[1735321430344,0.053159,94212.0,94210.0,0.00159184]
[1735321430744,0.053159,94212.0,94211.0,0.3608]
[1735321431138,0.053159,94212.0,94210.0,0.00159184]
[1735321431754,0.0609445,94212.0,94211.0,0.3608]
[1735321432154,0.053155,94220.0,94211.0,0.3608]
[1735321432362,0.10832603,94221.0,94214.0,0.053157]
[1735321432654,0.0078222,94222.0,94211.0,0.3608]
[1735321432857,0.10832603,94224.0,94211.0,0.3608]
[1735321433159,0.001,94212.0,94211.0,0.3638]
[1735321433655,0.053158,94214.0,94211.0,0.3608]
[1735321433848,0.053159,94213.0,94211.0,0.3638]
[1735321434250,0.053159,94213.0,94211.0,0.003]
[1735321434463,0.001,94212.0,94211.0,0.003]
[1735321435353,0.053159,94211.0,94210.0,0.00159184]
[1735321436462,0.053159,94211.0,94210.0,0.00459184]
[1735321436655,0.414959,94211.0,94210.0,0.00559184]
[1735321439357,0.414959,94211.0,94200.0,0.1]
[1735321439562,0.053165,94201.0,94200.0,0.1]
[1735321440864,0.054165,94201.0,94200.0,0.101]
[1735321441563,0.18542603,94210.0,94200.0,0.106]
[1735321441949,0.053165,94201.0,94200.0,0.106]
[1735321442154,0.053165,94201.0,94200.0,0.101]
[1735321442459,0.053165,94201.0,94200.0,0.106]
[1735321443669,0.053165,94201.0,94200.0,0.105]
[1735321443861,0.053161,94208.0,94200.0,0.105]
[1735321444167,0.053161,94208.0,94201.0,0.0794]
[1735321444560,0.10832603,94210.0,94201.0,0.0794]
[1735321444561,0.053162,94206.0,94201.0,0.0794]
[1735321444860,0.11647596,94210.0,94201.0,0.0794]
[1735321445463,0.10832603,94220.0,94204.0,0.3608]
[1735321445764,0.10832603,94220.0,94205.0,0.0815]
[1735321445963,0.10832603,94220.0,94210.0,0.05316]
[1735321446661,0.10832603,94220.0,94211.0,0.053159]
[1735321446862,0.10932603,94220.0,94211.0,0.053159]
[1735321447768,0.10932603,94220.0,94217.0,0.19009261]
[1735321447972,0.001,94220.0,94217.0,0.19009261]
[1735321448360,0.001,94220.0,94218.0,0.053155]
[1735321449060,0.001,94220.0,94212.0,0.413959]
[1735321449261,0.001,94220.0,94212.0,0.3608]
[1735321449462,0.001,94220.0,94217.0,0.053156]
[1735321449771,0.053151,94227.0,94219.0,0.053155]
[1735321449972,0.10991847,94230.0,94228.0,0.05315]
[1735321450159,0.00159244,94230.0,94229.0,0.0773]
[1735321450664,0.05315,94229.0,94220.0,0.413954]
[1735321450868,0.05315,94228.0,94221.0,0.0773]
[1735321451469,0.05315,94228.0,94221.0,0.130454]
[1735321451673,0.10991847,94230.0,94228.0,0.05315]
[1735321451973,0.00159244,94230.0,94228.0,0.05315]
[1735321452665,0.05474144,94230.0,94225.0,0.19009261]
[1735321453776,0.05574144,94230.0,94226.0,0.1606]
[1735321454365,0.054149,94230.0,94226.0,0.1606]
[1735321454659,0.001,94230.0,94228.0,0.3608]
[1735321454868,0.001,94230.0,94228.0,0.413949]
[1735321455275,0.053143,94242.0,94228.0,0.3608]
[1735321455667,0.053143,94242.0,94236.0,0.053145]
[1735321455860,0.053138,94249.0,94239.0,0.053143]
[1735321456064,0.053138,94249.0,94242.0,0.053142]
[1735321456376,0.053138,94249.0,94243.0,0.135641]
[1735321457076,0.053138,94249.0,94244.0,0.3608]
[1735321457776,0.053138,94249.0,94244.0,0.61481959]
[1735321458373,0.063138,94249.0,94244.0,0.61481959]
[1735321458875,0.063138,94249.0,94244.0,0.3618]
[1735321458876,0.057138,94249.0,94244.0,0.3618]
[1735321459175,0.001,94249.0,94244.0,0.3618]
[1735321459378,0.05314,94246.0,94244.0,0.3638]
[1735321459967,0.05314,94246.0,94244.0,0.3628]
[1735321460277,0.0767,94245.0,94244.0,0.003]
[1735321460665,0.05314,94246.0,94244.0,0.001]
[1735321460871,0.05314,94246.0,94244.0,0.003]
[1735321461471,0.3608,94247.0,94232.0,0.053147]
[1735321461679,0.001,94245.0,94232.0,0.053147]
[1735321461876,0.10832603,94242.0,94226.0,0.3608]
[1735321462071,0.053147,94234.0,94219.0,0.1904286]
[1735321462376,0.053142,94242.0,94231.0,0.053148]
[1735321462681,0.10832603,94241.0,94231.0,0.053148]
[1735321462979,0.10832603,94241.0,94224.0,0.053152]
[1735321463173,0.053149,94231.0,94218.0,0.2435836]
[1735321463370,0.0792,94230.0,94218.0,0.053155]
[1735321463578,0.0792,94230.0,94220.0,0.053154]
[1735321463768,0.0792,94230.0,94223.0,0.053153]
[1735321464772,0.053149,94231.0,94223.0,0.053153]
[1735321465372,0.06157015,94231.0,94223.0,0.053153]
[1735321466282,0.053151,94226.0,94216.0,0.053156]
[1735321466584,0.3608,94260.0,94225.0,0.30159173]
[1735321466777,0.053134,94257.0,94251.0,0.053136]
[1735321467281,0.053134,94257.0,94252.0,1.5]
[1735321467978,0.053134,94257.0,94251.0,0.053136]
[1735321468379,0.053134,94257.0,94251.0,1.553136]
[1735321468684,0.058134,94257.0,94252.0,0.001]
[1735321468983,0.067134,94257.0,94252.0,0.001]
[1735321469378,0.427934,94257.0,94252.0,0.001]
[1735321469581,0.067134,94257.0,94252.0,0.001]
[1735321470084,0.062134,94257.0,94251.0,0.053136]
[1735321470279,0.067134,94257.0,94251.0,0.053136]
[1735321470484,0.067134,94257.0,94248.0,0.3608]
[1735321470787,0.014,94257.0,94252.0,0.053136]
[1735321471082,0.00152,94279.0,94253.0,0.053136]
[1735321471380,0.3608,94287.0,94285.0,0.053117]
[1735321472687,0.3698,94287.0,94285.0,0.053117]
[1735321473179,0.009,94287.0,94285.0,0.053117]
[1735321473779,0.013,94287.0,94285.0,0.053117]